fUST/lending_fUST_20250520
["ID","MTS","AMOUNT","RATE_DAILY","PERIOD"]
[361735783,1747738254303,-430.0,0.00018082,2]
[361735784,1747738254313,-497.45257944,0.00018082,2]
[361735785,1747738254324,-285.54588055,0.00018082,2]
[361735786,1747738254333,-430.0,0.00018082,2]
[361735787,1747738254343,-430.0,0.00018082,2]
[361735788,1747738254353,-430.0,0.00018082,2]
[361735789,1747738254363,-430.0,0.00018082,2]
[361735790,1747738254374,-430.0,0.00018082,2]
[361735791,1747738254386,-430.0,0.00018082,2]
[361735792,1747738254399,-430.0,0.00018082,2]
[361735793,1747738254411,-1776.74,0.00018082,2]
[361735794,1747738254421,-3412.88,0.00018082,2]
[361735795,1747738254431,-520.16,0.00018082,2]
[361735796,1747738254443,-1930.13,0.00018082,2]
[361735797,1747738254453,-430.0,0.00018082,2]
[361735798,1747738254465,-430.0,0.00018082,2]
[361735799,1747738254476,-1061.63,0.00018082,2]
[361735800,1747738254487,-603.79,0.00018082,2]
[361735801,1747738254497,-506.36,0.00018082,2]
[361735802,1747738254508,-435.1250101,0.00018082,2]
[361735803,1747738254517,-487.10176042,0.00018082,2]
[361735804,1747738254527,-1753.15,0.00018082,2]
[361735805,1747738254537,-1305.03,0.00018082,2]
[361735806,1747738254547,-430.0,0.00018082,2]
[361735807,1747738254557,-691.23,0.00018082,2]
[361735808,1747738254569,-1148.42,0.00018082,2]
[361735809,1747738254579,-572.24,0.00018082,2]
[361735810,1747738254589,-2306.53,0.00018082,2]
[361735811,1747738254600,-430.0,0.00018082,2]
[361735812,1747738254611,-430.0,0.00018082,2]
[361735813,1747738254621,-582.21,0.00018082,2]
[361735814,1747738254632,-430.0,0.00018082,2]
[361735815,1747738254643,-430.0,0.00018082,2]
[361735816,1747738254655,-869.16,0.00018082,2]
[361735817,1747738254666,-1275.53,0.00018082,2]
[361735818,1747738254677,-596.79,0.00018082,2]
[361735819,1747738254687,-430.0,0.00018082,2]
[361735820,1747738254697,-958.75,0.00018082,2]
[361735821,1747738254706,-430.0,0.00018082,2]
[361735822,1747738254716,-430.0,0.00018082,2]
[361735823,1747738254727,-1444.05,0.00018082,2]
[361735824,1747738254738,-430.0,0.00018082,2]
[361735825,1747738254749,-430.0,0.00018082,2]
[361735826,1747738254759,-812.17,0.00018082,2]
[361735827,1747738254769,-207.65,0.00018082,2]
[361735828,1747738254780,-573.94,0.00018082,2]
[361735829,1747738254791,-852.85,0.00018082,2]
[361735830,1747738254801,-430.0,0.00018082,2]
[361735831,1747738254812,-594.94,0.00018082,2]
[361735832,1747738254823,-1179.22,0.00018082,2]
[361735833,1747738254833,-660.64,0.00018082,2]
[361735834,1747738254843,-451.17,0.00018082,2]
[361735835,1747738254853,-1760.65,0.00018082,2]
[361735836,1747738254863,-447.88,0.00018082,2]
[361735837,1747738254874,-731.84,0.00018082,2]
[361735838,1747738254890,-476.44,0.00018082,2]
[361735839,1747738254900,-430.0,0.00018082,2]
[361735840,1747738254910,-1820.69,0.00018082,2]
[361735841,1747738254921,-430.0,0.00018082,2]
[361735842,1747738254931,-872.77,0.00018082,2]
[361735843,1747738254941,-4745.31,0.00018082,2]
[361735844,1747738254951,-527.01,0.00018082,2]
[361735845,1747738254962,-430.0,0.00018082,2]
[361735846,1747738254973,-5627.3,0.00018082,2]
[361735847,1747738254984,-430.0,0.00018082,2]
[361735848,1747738254996,-430.0,0.00018082,2]
[361735849,1747738255005,-430.0,0.00018082,2]
[361735850,1747738255014,-2019.01,0.00018082,2]
[361735851,1747738255025,-430.0,0.00018082,2]
[361735852,1747738255038,-830.49,0.00018082,2]
[361735853,1747738255049,-844.01,0.00018082,2]
[361735854,1747738255059,-430.0,0.00018082,2]
[361735855,1747738255069,-430.0,0.00018082,2]
[361735856,1747738255079,-674.04,0.00018082,2]
[361735857,1747738255090,-775.5,0.00018082,2]
[361735858,1747738255100,-844.73,0.00018082,2]
[361735859,1747738255109,-740.93,0.00018082,2]
[361735860,1747738255119,-926.22,0.00018082,2]
[361735861,1747738255129,-430.0,0.00018082,2]
[361735862,1747738255139,-1000.0,0.00018099,3]
[361735863,1747738255150,-500.0,0.000181,2]
[361735864,1747738255160,-693.201,0.00018101,2]
[361735865,1747738255170,-170.099,0.00018101,2]
[361735866,1747738255179,-2000.0,0.00018116,2]
[361735867,1747738255189,-503.1389503,0.00018116,2]
[361735868,1747738255199,-1509.28649543,0.00018116,2]
[361735869,1747738255210,-14441.76249022,0.00018141,2]
[361735870,1747738255221,-3000.0,0.00018253,2]
[361735871,1747738255231,-1000.0,0.00018289,3]
[361735872,1747738255241,-430.0,0.00018356,2]
[361735873,1747738255250,-283.85261709,0.00018356,2]
[361735874,1747738255260,-430.0,0.00018356,2]
[361735875,1747738255271,-430.0,0.00018356,2]
[361735876,1747738255282,-430.0,0.00018356,2]
[361735877,1747738255292,-430.0,0.00018356,2]
[361735878,1747738255302,-501.26998923,0.00018356,2]
[361735879,1747738255312,-430.0,0.00018356,2]
[361735880,1747738255323,-430.0,0.00018356,2]
[361735881,1747738255333,-430.0,0.00018356,2]
[361735882,1747738255344,-270.49203085,0.00018356,2]
[361735883,1747738255354,-430.0,0.00018356,2]
[361735884,1747738255364,-430.0,0.00018356,2]
[361735885,1747738255374,-430.0,0.00018356,2]
[361735886,1747738255384,-430.0,0.00018356,2]
[361735887,1747738255394,-1776.74,0.00018356,2]
[361735888,1747738255405,-3412.88,0.00018356,2]
[361735889,1747738255415,-520.16,0.00018356,2]
[361735890,1747738255425,-1930.13,0.00018356,2]
[361735891,1747738255435,-430.0,0.00018356,2]
[361735892,1747738255444,-430.0,0.00018356,2]
[361735893,1747738255454,-1061.63,0.00018356,2]
[361735894,1747738255464,-603.79,0.00018356,2]
[361735895,1747738255474,-506.36,0.00018356,2]
[361735896,1747738255483,-1753.15,0.00018356,2]
[361735897,1747738255493,-1305.03,0.00018356,2]
[361735898,1747738255503,-430.0,0.00018356,2]
[361735899,1747738255513,-691.23,0.00018356,2]
[361735900,1747738255524,-1148.42,0.00018356,2]
[361735901,1747738255533,-572.24,0.00018356,2]
[361735902,1747738255543,-2306.53,0.00018356,2]
[361735903,1747738255554,-430.0,0.00018356,2]
[361735904,1747738255564,-430.0,0.00018356,2]
[361735905,1747738255574,-582.21,0.00018356,2]
[361735906,1747738255583,-430.0,0.00018356,2]
[361735907,1747738255593,-430.0,0.00018356,2]
[361735908,1747738255603,-869.16,0.00018356,2]
[361735909,1747738255612,-1275.53,0.00018356,2]
[361735910,1747738255621,-596.79,0.00018356,2]
[361735911,1747738255631,-430.0,0.00018356,2]
[361735912,1747738255642,-958.75,0.00018356,2]
[361735913,1747738255651,-430.0,0.00018356,2]
[361735914,1747738255660,-430.0,0.00018356,2]
[361735915,1747738255671,-1444.05,0.00018356,2]
[361735916,1747738255680,-430.0,0.00018356,2]
[361735917,1747738255690,-430.0,0.00018356,2]
[361735918,1747738255699,-812.17,0.00018356,2]
[361735919,1747738255710,-573.94,0.00018356,2]
[361735920,1747738255719,-852.85,0.00018356,2]
[361735921,1747738255859,-430.0,0.00018356,2]
[361735922,1747738255872,-594.94,0.00018356,2]
[361735923,1747738255887,-1179.22,0.00018356,2]
[361735924,1747738255896,-660.64,0.00018356,2]
[361735925,1747738255906,-451.17,0.00018356,2]
[361735926,1747738255915,-1760.65,0.00018356,2]
[361735927,1747738255926,-447.88,0.00018356,2]
[361735928,1747738255936,-731.84,0.00018356,2]
[361735929,1747738255947,-476.44,0.00018356,2]
[361735930,1747738255959,-430.0,0.00018356,2]
[361735931,1747738255968,-1820.69,0.00018356,2]
[361735932,1747738255978,-430.0,0.00018356,2]
[361735933,1747738255987,-872.77,0.00018356,2]
[361735934,1747738255998,-4745.31,0.00018356,2]
[361735935,1747738256007,-527.01,0.00018356,2]
[361735936,1747738256018,-430.0,0.00018356,2]
[361735937,1747738256027,-5627.3,0.00018356,2]
[361735938,1747738256038,-430.0,0.00018356,2]
[361735939,1747738256047,-430.0,0.00018356,2]
[361735940,1747738256057,-430.0,0.00018356,2]
[361735941,1747738256067,-2019.01,0.00018356,2]
[361735942,1747738256077,-430.0,0.00018356,2]
[361735943,1747738256087,-830.49,0.00018356,2]
[361735944,1747738256096,-844.01,0.00018356,2]
[361735945,1747738256107,-430.0,0.00018356,2]
[361735946,1747738256116,-361.79338534,0.00018356,2]
[361735947,1747738256126,-674.04,0.00018356,2]
[361735948,1747738256135,-775.5,0.00018356,2]
[361735949,1747738256145,-844.73,0.00018356,2]
[361735950,1747738256154,-740.93,0.00018356,2]
[361735951,1747738256164,-926.22,0.00018356,2]
[361735952,1747738256173,-430.0,0.00018356,2]
[361735953,1747738256183,-151.0,0.000184,2]
[361735954,1747738256193,-14441.76249022,0.00018452,2]
[361735955,1747738256203,-164.054303,0.00018606,3]
[361735956,1747738256212,-430.0,0.0001863,2]
[361735957,1747738256221,-430.0,0.0001863,2]
[361735958,1747738256231,-430.0,0.0001863,2]
[361735959,1747738256241,-430.0,0.0001863,2]
[361735960,1747738256251,-430.0,0.0001863,2]
[361735961,1747738256261,-430.0,0.0001863,2]
[361735962,1747738256271,-430.0,0.0001863,2]
[361735963,1747738256281,-430.0,0.0001863,2]
[361735964,1747738256290,-430.0,0.0001863,2]
[361735965,1747738256300,-430.0,0.0001863,2]
[361735966,1747738256309,-430.0,0.0001863,2]
[361735967,1747738256319,-502.77438461,0.0001863,2]
[361735968,1747738256329,-1776.74,0.0001863,2]
[361735969,1747738256339,-3412.88,0.0001863,2]
[361735970,1747738256348,-520.16,0.0001863,2]
[361735971,1747738256358,-1930.13,0.0001863,2]
[361735972,1747738256368,-430.0,0.0001863,2]
[361735973,1747738256378,-430.0,0.0001863,2]
[361735974,1747738256387,-1061.63,0.0001863,2]
[361735975,1747738256397,-603.79,0.0001863,2]
[361735976,1747738256406,-506.36,0.0001863,2]
[361735977,1747738256416,-1753.15,0.0001863,2]
[361735978,1747738256426,-1305.03,0.0001863,2]
[361735979,1747738256435,-430.0,0.0001863,2]
[361735980,1747738256445,-691.23,0.0001863,2]
[361735981,1747738256454,-1148.42,0.0001863,2]
[361735982,1747738256464,-572.24,0.0001863,2]
[361735983,1747738256473,-2306.53,0.0001863,2]
[361735984,1747738256483,-430.0,0.0001863,2]
[361735985,1747738256492,-315.8799665,0.0001863,2]
[361735986,1747738256502,-582.21,0.0001863,2]
[361735987,1747738256512,-430.0,0.0001863,2]
[361735988,1747738256522,-430.0,0.0001863,2]
[361735989,1747738256532,-869.16,0.0001863,2]
[361735990,1747738256542,-1275.53,0.0001863,2]
[361735991,1747738256551,-596.79,0.0001863,2]
[361735992,1747738256561,-430.0,0.0001863,2]
[361735993,1747738256571,-958.75,0.0001863,2]
[361735994,1747738256581,-160.0,0.0001863,2]
[361735995,1747738256591,-430.0,0.0001863,2]
[361735996,1747738256602,-1444.05,0.0001863,2]
[361735997,1747738256611,-430.0,0.0001863,2]
[361735998,1747738256621,-430.0,0.0001863,2]
[361735999,1747738256631,-812.17,0.0001863,2]
[361736000,1747738256641,-573.94,0.0001863,2]
[361736001,1747738256652,-852.85,0.0001863,2]
[361736002,1747738256662,-430.0,0.0001863,2]
[361736003,1747738256672,-594.94,0.0001863,2]
[361736004,1747738256682,-1179.22,0.0001863,2]
[361736005,1747738256692,-660.64,0.0001863,2]
[361736006,1747738256702,-451.17,0.0001863,2]
[361736007,1747738256713,-1760.65,0.0001863,2]
[361736008,1747738256724,-447.88,0.0001863,2]
[361736009,1747738256735,-731.84,0.0001863,2]
[361736010,1747738256745,-476.44,0.0001863,2]
[361736011,1747738256755,-430.0,0.0001863,2]
[361736012,1747738256765,-1820.69,0.0001863,2]
[361736013,1747738256775,-430.0,0.0001863,2]
[361736014,1747738256785,-872.77,0.0001863,2]
[361736015,1747738256795,-4745.31,0.0001863,2]
[361736016,1747738256804,-527.01,0.0001863,2]
[361736017,1747738256815,-430.0,0.0001863,2]
[361736018,1747738256826,-5627.3,0.0001863,2]
[361736019,1747738256836,-430.0,0.0001863,2]
[361736020,1747738256846,-430.0,0.0001863,2]
[361736021,1747738256856,-430.0,0.0001863,2]
[361736022,1747738256866,-2019.01,0.0001863,2]
[361736023,1747738256879,-430.0,0.0001863,2]
[361736024,1747738256890,-830.49,0.0001863,2]
[361736025,1747738256899,-844.01,0.0001863,2]
[361736026,1747738256909,-430.0,0.0001863,2]
[361736027,1747738256920,-674.04,0.0001863,2]
[361736028,1747738256930,-775.5,0.0001863,2]
[361736029,1747738256942,-844.73,0.0001863,2]
[361736030,1747738256951,-740.93,0.0001863,2]
[361736031,1747738256963,-926.22,0.0001863,2]
[361736032,1747738256973,-430.0,0.0001863,2]
[361736033,1747738256982,-2500.0,0.00018664,2]
[361736034,1747738256993,-2000.0,0.00018689,3]
[361736035,1747738257003,-164.054303,0.00018711,2]
[361736036,1747738257012,-2200.0,0.00018735,2]
[361736037,1747738257022,-500.0,0.00018735,2]
[361736038,1747738257034,-14441.76249022,0.00018762,2]
[361736039,1747738257044,-566.40613226,0.00018782,2]
[361736040,1747738257054,-6250.44559012,0.000189,2]
[361736041,1747738257066,-430.0,0.00018904,2]
[361736042,1747738257075,-430.0,0.00018904,2]
[361736043,1747738257085,-430.0,0.00018904,2]
[361736044,1747738257094,-430.0,0.00018904,2]
[361736045,1747738257104,-430.0,0.00018904,2]
[361736046,1747738257114,-430.0,0.00018904,2]
[361736047,1747738257124,-430.0,0.00018904,2]
[361736048,1747738257134,-430.0,0.00018904,2]
[361736049,1747738257145,-430.0,0.00018904,2]
[361736050,1747738257155,-430.0,0.00018904,2]
[361736051,1747738257165,-430.0,0.00018904,2]
[361736052,1747738257175,-1776.74,0.00018904,2]
[361736053,1747738257184,-3412.88,0.00018904,2]
[361736054,1747738257195,-520.16,0.00018904,2]
[361736055,1747738257206,-1930.13,0.00018904,2]
[361736056,1747738257216,-307.03366984,0.00018904,2]
[361736057,1747738257227,-430.0,0.00018904,2]
[361736058,1747738257237,-1061.63,0.00018904,2]
[361736059,1747738257248,-603.79,0.00018904,2]
[361736060,1747738257259,-506.36,0.00018904,2]
[361736061,1747738257270,-1753.15,0.00018904,2]
[361736062,1747738257280,-1305.03,0.00018904,2]
[361736063,1747738257290,-430.0,0.00018904,2]
[361736064,1747738257301,-691.23,0.00018904,2]
[361736065,1747738257311,-1148.42,0.00018904,2]
[361736066,1747738257320,-572.24,0.00018904,2]
[361736067,1747738257330,-2306.53,0.00018904,2]
[361736068,1747738257340,-430.0,0.00018904,2]
[361736069,1747738257350,-582.21,0.00018904,2]
[361736070,1747738257359,-430.0,0.00018904,2]
[361736071,1747738257369,-430.0,0.00018904,2]
[361736072,1747738257379,-869.16,0.00018904,2]
[361736073,1747738257389,-1275.53,0.00018904,2]
[361736074,1747738257399,-596.79,0.00018904,2]
[361736075,1747738257408,-430.0,0.00018904,2]
[361736076,1747738257419,-958.75,0.00018904,2]
[361736077,1747738257428,-430.0,0.00018904,2]
[361736078,1747738257438,-1444.05,0.00018904,2]
[361736079,1747738257448,-430.0,0.00018904,2]
[361736080,1747738257458,-430.0,0.00018904,2]
[361736081,1747738257468,-812.17,0.00018904,2]
[361736082,1747738257477,-573.94,0.00018904,2]
[361736083,1747738257487,-852.85,0.00018904,2]
[361736084,1747738257497,-430.0,0.00018904,2]
[361736085,1747738257507,-594.94,0.00018904,2]
[361736086,1747738257517,-1179.22,0.00018904,2]
[361736087,1747738257527,-660.64,0.00018904,2]
[361736088,1747738257536,-451.17,0.00018904,2]
[361736089,1747738257546,-1760.65,0.00018904,2]
[361736090,1747738257556,-447.88,0.00018904,2]
[361736091,1747738257566,-731.84,0.00018904,2]
[361736092,1747738257575,-476.44,0.00018904,2]
[361736093,1747738257585,-430.0,0.00018904,2]
[361736094,1747738257594,-1820.69,0.00018904,2]
[361736095,1747738257605,-430.0,0.00018904,2]
[361736096,1747738257615,-872.77,0.00018904,2]
[361736097,1747738257624,-4745.31,0.00018904,2]
[361736098,1747738257634,-527.01,0.00018904,2]
[361736099,1747738257645,-160.0,0.00018904,2]
[361736100,1747738257655,-5627.3,0.00018904,2]
[361736101,1747738257665,-430.0,0.00018904,2]
[361736102,1747738257674,-430.0,0.00018904,2]
[361736103,1747738257684,-430.0,0.00018904,2]
[361736104,1747738257694,-2019.01,0.00018904,2]
[361736105,1747738257703,-830.49,0.00018904,2]
[361736106,1747738257713,-430.0,0.00018904,2]
[361736107,1747738257722,-844.01,0.00018904,2]
[361736108,1747738257732,-430.0,0.00018904,2]
[361736109,1747738257741,-674.04,0.00018904,2]
[361736110,1747738257753,-775.5,0.00018904,2]
[361736111,1747738257763,-844.73,0.00018904,2]
[361736112,1747738257773,-740.93,0.00018904,2]
[361736113,1747738257782,-926.22,0.00018904,2]
[361736114,1747738257793,-430.0,0.00018904,2]
[361736115,1747738257803,-500.000001,0.0001898,2]
[361736116,1747738257812,-3449.63104808,0.00019,2]
[361736117,1747738257824,-804.32,0.00019,2]
[361736118,1747738257833,-51182.55652504,0.00019,7]
[361736119,1747738257843,-172.33243417,0.00019,2]
[361736120,1747738257854,-14441.76249022,0.00019072,2]
[361736121,1747738257864,-160.0,0.00019135,3]
[361736122,1747738257875,-164.054303,0.00019144,3]
[361736123,1747738257885,-430.0,0.00019178,2]
[361736124,1747738257894,-430.0,0.00019178,2]
[361736125,1747738257904,-430.0,0.00019178,2]
[361736126,1747738257914,-430.0,0.00019178,2]
[361736127,1747738257923,-430.0,0.00019178,2]
[361736128,1747738257933,-430.0,0.00019178,2]
[361736129,1747738257943,-430.0,0.00019178,2]
[361736130,1747738257953,-430.0,0.00019178,2]
[361736131,1747738257963,-430.0,0.00019178,2]
[361736132,1747738257972,-430.0,0.00019178,2]
[361736133,1747738257981,-430.0,0.00019178,2]
[361736134,1747738257991,-1776.74,0.00019178,2]
[361736135,1747738258000,-3412.88,0.00019178,2]
[361736136,1747738258010,-520.16,0.00019178,2]
[361736137,1747738258019,-1930.13,0.00019178,2]
[361736138,1747738258029,-430.0,0.00019178,2]
[361736139,1747738258038,-1061.63,0.00019178,2]
[361736140,1747738258047,-603.79,0.00019178,2]
[361736141,1747738258056,-506.36,0.00019178,2]
[361736142,1747738258066,-1753.15,0.00019178,2]
[361736143,1747738258076,-1305.03,0.00019178,2]
[361736144,1747738258086,-430.0,0.00019178,2]
[361736145,1747738258096,-691.23,0.00019178,2]
[361736146,1747738258105,-1148.42,0.00019178,2]
[361736147,1747738258114,-572.24,0.00019178,2]
[361736148,1747738258125,-2306.53,0.00019178,2]
[361736149,1747738258137,-430.0,0.00019178,2]
[361736150,1747738258148,-582.21,0.00019178,2]
[361736151,1747738258158,-430.0,0.00019178,2]
[361736152,1747738258167,-430.0,0.00019178,2]
[361736153,1747738258178,-869.16,0.00019178,2]
[361736154,1747738258189,-1275.53,0.00019178,2]
[361736155,1747738258199,-596.79,0.00019178,2]
[361736156,1747738258210,-430.0,0.00019178,2]
[361736157,1747738258219,-958.75,0.00019178,2]
[361736158,1747738258229,-430.0,0.00019178,2]
[361736159,1747738258239,-1444.05,0.00019178,2]
[361736160,1747738258249,-452.56905399,0.00019178,2]
[361736161,1747738258259,-430.0,0.00019178,2]
[361736162,1747738258270,-812.17,0.00019178,2]
[361736163,1747738258280,-573.94,0.00019178,2]
[361736164,1747738258290,-852.85,0.00019178,2]
[361736165,1747738258301,-430.0,0.00019178,2]
[361736166,1747738258311,-594.94,0.00019178,2]
[361736167,1747738258322,-1179.22,0.00019178,2]
[361736168,1747738258331,-660.64,0.00019178,2]
[361736169,1747738258341,-451.17,0.00019178,2]
[361736170,1747738258351,-1760.65,0.00019178,2]
[361736171,1747738258361,-447.88,0.00019178,2]
[361736172,1747738258372,-731.84,0.00019178,2]
[361736173,1747738258382,-476.44,0.00019178,2]
[361736174,1747738258391,-430.0,0.00019178,2]
[361736175,1747738258401,-1820.69,0.00019178,2]
[361736176,1747738258533,-430.0,0.00019178,2]
[361736177,1747738258545,-872.77,0.00019178,2]
[361736178,1747738258555,-4745.31,0.00019178,2]
[361736179,1747738258565,-527.01,0.00019178,2]
[361736180,1747738258575,-5627.3,0.00019178,2]
[361736181,1747738258584,-430.0,0.00019178,2]
[361736182,1747738258594,-430.0,0.00019178,2]
[361736183,1747738258604,-430.0,0.00019178,2]
[361736184,1747738258615,-2019.01,0.00019178,2]
[361736185,1747738258624,-830.49,0.00019178,2]
[361736186,1747738258635,-430.0,0.00019178,2]
[361736187,1747738258645,-1500.0,0.00019178,2]
[361736188,1747738258654,-1500.0,0.00019178,3]
[361736189,1747738258665,-1500.0,0.00019178,4]
[361736190,1747738258676,-442.1689941,0.00019178,5]
[361736191,1747738258686,-844.01,0.00019178,2]
[361736192,1747738258696,-430.0,0.00019178,2]
[361736193,1747738258706,-674.04,0.00019178,2]
[361736194,1747738258716,-775.5,0.00019178,2]
[361736195,1747738258726,-844.73,0.00019178,2]
[361736196,1747738258736,-151.33575162,0.00019178,2]
[361736197,1747738258746,-740.93,0.00019178,2]
[361736198,1747738258755,-926.22,0.00019178,2]
[361736199,1747738258765,-430.0,0.00019178,2]
[361736200,1747738258775,-155.0,0.00019178,2]
[361736201,1747738258785,-166.0,0.00019178,2]
[361736202,1747738258794,-967.685057,0.00019178,2]
[361736203,1747738258803,-153.0,0.00019178,2]
[361736204,1747738258813,-153.0,0.00019178,2]
[361736205,1747738258823,-153.0,0.00019178,2]
[361736206,1747738258832,-3000.0,0.00019212,2]
[361736207,1747738258842,-9787.00344768,0.00019238,2]
[361736208,1747738258852,-160.0,0.00019328,2]
[361736209,1747738258862,-100000.0,0.00019329,2]
[361736210,1747738258873,-164.054303,0.00019338,2]
[361736211,1747738258885,-3000.0,0.00019349,2]
[361736212,1747738258895,-14441.76249022,0.00019383,2]
[361736213,1747738258905,-430.0,0.00019452,2]
[361736214,1747738258914,-430.0,0.00019452,2]
[361736215,1747738258924,-430.0,0.00019452,2]
[361736216,1747738258934,-430.0,0.00019452,2]
[361736217,1747738258943,-430.0,0.00019452,2]
[361736218,1747738258954,-430.0,0.00019452,2]
[361736219,1747738258964,-430.0,0.00019452,2]
[361736220,1747738258974,-430.0,0.00019452,2]
[361736221,1747738258983,-430.0,0.00019452,2]
[361736222,1747738258993,-430.0,0.00019452,2]
[361736223,1747738259002,-430.0,0.00019452,2]
[361736224,1747738259012,-1776.74,0.00019452,2]
[361736225,1747738259021,-3412.88,0.00019452,2]
[361736226,1747738259031,-520.16,0.00019452,2]
[361736227,1747738259040,-1930.13,0.00019452,2]
[361736228,1747738259050,-430.0,0.00019452,2]
[361736229,1747738259059,-1061.63,0.00019452,2]
[361736230,1747738259069,-603.79,0.00019452,2]
[361736231,1747738259078,-506.36,0.00019452,2]
[361736232,1747738259088,-1753.15,0.00019452,2]
[361736233,1747738259098,-1305.03,0.00019452,2]
[361736234,1747738259108,-430.0,0.00019452,2]
[361736235,1747738259117,-691.23,0.00019452,2]
[361736236,1747738259128,-1148.42,0.00019452,2]
[361736237,1747738259139,-572.24,0.00019452,2]
[361736238,1747738259149,-2306.53,0.00019452,2]
[361736239,1747738259158,-430.0,0.00019452,2]
[361736240,1747738259169,-582.21,0.00019452,2]
[361736241,1747738259179,-430.0,0.00019452,2]
[361736242,1747738259189,-430.0,0.00019452,2]
[361736243,1747738259200,-869.16,0.00019452,2]
[361736244,1747738259211,-1275.53,0.00019452,2]
[361736245,1747738259221,-596.79,0.00019452,2]
[361736246,1747738259231,-430.0,0.00019452,2]
[361736247,1747738259240,-958.75,0.00019452,2]
[361736248,1747738259251,-430.0,0.00019452,2]
[361736249,1747738259260,-1444.05,0.00019452,2]
[361736250,1747738259270,-430.0,0.00019452,2]
[361736251,1747738259279,-812.17,0.00019452,2]
[361736252,1747738259289,-573.94,0.00019452,2]
[361736253,1747738259298,-852.85,0.00019452,2]
[361736254,1747738259308,-545.76247446,0.00019452,2]
[361736255,1747738259317,-594.94,0.00019452,2]
[361736256,1747738259327,-1179.22,0.00019452,2]
[361736257,1747738259336,-660.64,0.00019452,2]
[361736258,1747738259345,-451.17,0.00019452,2]
[361736259,1747738259355,-1760.65,0.00019452,2]
[361736260,1747738259365,-447.88,0.00019452,2]
[361736261,1747738259374,-731.84,0.00019452,2]
[361736262,1747738259384,-476.44,0.00019452,2]
[361736263,1747738259393,-430.0,0.00019452,2]
[361736264,1747738259403,-1820.69,0.00019452,2]
[361736265,1747738259412,-452.79271723,0.00019452,2]
[361736266,1747738259422,-872.77,0.00019452,2]
[361736267,1747738259432,-4745.31,0.00019452,2]
[361736268,1747738259442,-527.01,0.00019452,2]
[361736269,1747738259454,-5627.3,0.00019452,2]
[361736270,1747738259463,-430.0,0.00019452,2]
[361736271,1747738259475,-430.0,0.00019452,2]
[361736272,1747738259486,-430.0,0.00019452,2]
[361736273,1747738259496,-2019.01,0.00019452,2]
[361736274,1747738259506,-830.49,0.00019452,2]
[361736275,1747738259517,-430.0,0.00019452,2]
[361736276,1747738259527,-844.01,0.00019452,2]
[361736277,1747738259536,-430.0,0.00019452,2]
[361736278,1747738259545,-674.04,0.00019452,2]
[361736279,1747738259555,-775.5,0.00019452,2]
[361736280,1747738259565,-844.73,0.00019452,2]
[361736281,1747738259574,-740.93,0.00019452,2]
[361736282,1747738259583,-926.22,0.00019452,2]